[Event "Titled Tuesday Blitz December 06 Early 2022"]
[White "Aravindh, Chithambaram VR."]
[Black "Firouzja, Alireza"]
[WhiteFideId "5072786"]
[BlackFideId "12573981"]
[WhiteElo "2586"]
[BlackElo "2904"]
[Result "1-0"]
[Round "04"]
[TimeControl "180+1"]
[Date "2022.12.06"]
[WhiteClock "0:00:14"]
[BlackClock "0:00:09"]

1. e4 {[%clk 0:02:59]}  c6 {[%clk 0:02:53]} 2. d4 {[%clk 0:02:57]}  d5 {[%clk 0:02:53]} 3. e5 {[%clk 0:02:52]}  Bf5 {[%clk 0:02:51]} 4. h4 {[%clk 0:02:51]}  h5 {[%clk 0:02:49]} 5. Bd3 {[%clk 0:02:51]}  Bxd3 {[%clk 0:02:48]} 6. Qxd3 {[%clk 0:02:52]}  e6 {[%clk 0:02:48]} 7. Bg5 {[%clk 0:02:50]}  Qa5+ {[%clk 0:02:45]} 8. Nd2 {[%clk 0:02:50]}  Nd7 {[%clk 0:02:40]} 9. Ne2 {[%clk 0:02:46]}  Ne7 {[%clk 0:02:35]} 10. O-O {[%clk 0:02:41]}  Qb5 {[%clk 0:02:28]} 11. c4 {[%clk 0:02:27]}  dxc4 {[%clk 0:02:27]} 12. Nxc4 {[%clk 0:02:27]}  Nd5 {[%clk 0:02:27]} 13. Nc3 {[%clk 0:02:18]}  Nxc3 {[%clk 0:02:20]} 14. Qxc3 {[%clk 0:02:17]}  Nb6 {[%clk 0:02:20]} 15. b3 {[%clk 0:02:08]}  Nd5 {[%clk 0:02:10]} 16. Qg3 {[%clk 0:01:52]}  c5 {[%clk 0:01:40]} 17. Rad1 {[%clk 0:01:19]}  cxd4 {[%clk 0:01:40]} 18. Rxd4 {[%clk 0:01:20]}  Bc5 {[%clk 0:01:35]} 19. Rfd1 {[%clk 0:01:03]}  Qc6 {[%clk 0:00:44]} 20. Nd6+ {[%clk 0:00:45]}  Bxd6 {[%clk 0:00:42]} 21. exd6 {[%clk 0:00:46]}  Kd7 {[%clk 0:00:36]} 22. Bf4 {[%clk 0:00:45]}  g6 {[%clk 0:00:30]} 23. Rc4 {[%clk 0:00:43]}  Qb5 {[%clk 0:00:18]} 24. Rc7+ {[%clk 0:00:36]}  Nxc7 {[%clk 0:00:14]} 25. dxc7+ {[%clk 0:00:37]}  Kc8 {[%clk 0:00:15]} 26. Bg5 {[%clk 0:00:25]}  e5 {[%clk 0:00:15]} 27. Qc3 {[%clk 0:00:14]}  b6 {[%clk 0:00:09]} 28. Rd8+ {[%clk 0:00:14]}  Kb7 {[%clk 0:00:09]} 29. c8=Q+ {[%clk 0:00:14]} 1-0


[Site "https://www.chess.com"]

[Event "Titled Tuesday Blitz December 06 Early 2022"]
[White "Artemenko, Oleg"]
[Black "Grandelius, Nils"]
[WhiteFideId "14201798"]
[BlackFideId "1710400"]
[WhiteElo "2287"]
[BlackElo "2617"]
[Result "1-0"]
[Round "04"]
[TimeControl "180+1"]
[Date "2022.12.06"]
[WhiteClock "0:00:11"]
[BlackClock "0:00:02"]

1. d4 {[%clk 0:03:00]}  f5 {[%clk 0:02:58]} 2. Nc3 {[%clk 0:03:01]}  Nf6 {[%clk 0:02:54]} 3. Bg5 {[%clk 0:03:01]}  d5 {[%clk 0:02:54]} 4. e3 {[%clk 0:03:01]}  e6 {[%clk 0:02:54]} 5. Nf3 {[%clk 0:03:00]}  Be7 {[%clk 0:02:52]} 6. Ne5 {[%clk 0:02:59]}  O-O {[%clk 0:02:49]} 7. h4 {[%clk 0:02:59]}  c5 {[%clk 0:02:48]} 8. Be2 {[%clk 0:02:57]}  Nc6 {[%clk 0:02:47]} 9. Nxc6 {[%clk 0:02:47]}  bxc6 {[%clk 0:02:48]} 10. Na4 {[%clk 0:02:36]}  c4 {[%clk 0:02:31]} 11. c3 {[%clk 0:02:33]}  Ne4 {[%clk 0:02:27]} 12. Bxe7 {[%clk 0:02:34]}  Qxe7 {[%clk 0:02:27]} 13. Bf3 {[%clk 0:02:34]}  Nf6 {[%clk 0:02:18]} 14. b3 {[%clk 0:02:28]}  cxb3 {[%clk 0:02:15]} 15. axb3 {[%clk 0:02:29]}  a5 {[%clk 0:02:06]} 16. Be2 {[%clk 0:02:24]}  Ne4 {[%clk 0:02:03]} 17. Bd3 {[%clk 0:02:21]}  e5 {[%clk 0:01:55]} 18. Bxe4 {[%clk 0:02:07]}  fxe4 {[%clk 0:01:56]} 19. Nc5 {[%clk 0:02:08]}  Qf6 {[%clk 0:01:48]} 20. Qe2 {[%clk 0:02:06]}  Qg6 {[%clk 0:01:42]} 21. g3 {[%clk 0:02:02]}  Bg4 {[%clk 0:01:40]} 22. Qd2 {[%clk 0:02:02]}  exd4 {[%clk 0:01:35]} 23. cxd4 {[%clk 0:01:59]}  Rf6 {[%clk 0:01:32]} 24. Rxa5 {[%clk 0:01:56]}  Raf8 {[%clk 0:01:32]} 25. Rh2 {[%clk 0:01:57]}  Bh5 {[%clk 0:01:32]} 26. Nd7 {[%clk 0:01:50]}  Qg4 {[%clk 0:01:10]} 27. Nxf6+ {[%clk 0:01:29]}  Rxf6 {[%clk 0:01:11]} 28. Ra2 {[%clk 0:01:20]}  h6 {[%clk 0:01:10]} 29. Qe2 {[%clk 0:01:13]}  Qf5 {[%clk 0:01:09]} 30. Qa6 {[%clk 0:01:10]}  Kh7 {[%clk 0:01:08]} 31. Rd2 {[%clk 0:01:02]}  Qg4 {[%clk 0:01:05]} 32. Qe2 {[%clk 0:00:53]}  Qg6 {[%clk 0:01:05]} 33. Qa6 {[%clk 0:00:49]}  Rf3 {[%clk 0:01:01]} 34. Rg2 {[%clk 0:00:47]}  Qe6 {[%clk 0:00:57]} 35. Kf1 {[%clk 0:00:43]}  Qh3 {[%clk 0:00:53]} 36. Kg1 {[%clk 0:00:44]}  Rf6 {[%clk 0:00:53]} 37. Ra2 {[%clk 0:00:38]}  Rg6 {[%clk 0:00:49]} 38. Qf1 {[%clk 0:00:28]}  Bf3 {[%clk 0:00:46]} 39. Rh2 {[%clk 0:00:29]}  Qg4 {[%clk 0:00:43]} 40. Qh3 {[%clk 0:00:29]}  Qh5 {[%clk 0:00:39]} 41. Qc8 {[%clk 0:00:28]}  Bg4 {[%clk 0:00:35]} 42. Qe8 {[%clk 0:00:28]}  Be6 {[%clk 0:00:29]} 43. Rg2 {[%clk 0:00:13]}  Qd1+ {[%clk 0:00:18]} 44. Kh2 {[%clk 0:00:13]}  Rf6 {[%clk 0:00:17]} 45. Ra8 {[%clk 0:00:12]}  Qe2 {[%clk 0:00:15]} 46. h5 {[%clk 0:00:12]}  Qxh5+ {[%clk 0:00:02]} 47. Qxh5 {[%clk 0:00:11]} 1-0


[Site "https://www.chess.com"]

[Event "Titled Tuesday Blitz December 06 Early 2022"]
[White "Atakhan, Abtin"]
[Black "Valle Maytin, Luis Enrique"]
[WhiteFideId "22502203"]
[BlackFideId "3503666"]
[WhiteElo "2189"]
[BlackElo "2225"]
[Result "1-0"]
[Round "04"]
[TimeControl "180+1"]
[Date "2022.12.07"]
[WhiteClock "0:00:18"]
[BlackClock "0:00:08"]

1. d4 {[%clk 0:03:00]}  Nf6 {[%clk 0:02:59]} 2. c4 {[%clk 0:03:00]}  e6 {[%clk 0:02:58]} 3. Nf3 {[%clk 0:03:01]}  d5 {[%clk 0:02:55]} 4. Nc3 {[%clk 0:03:01]}  Be7 {[%clk 0:02:55]} 5. Bg5 {[%clk 0:03:01]}  O-O {[%clk 0:02:52]} 6. e3 {[%clk 0:03:01]}  c6 {[%clk 0:02:51]} 7. Rc1 {[%clk 0:03:00]}  h6 {[%clk 0:02:51]} 8. Bf4 {[%clk 0:03:00]}  Nh5 {[%clk 0:02:49]} 9. Be5 {[%clk 0:02:52]}  Nf6 {[%clk 0:02:43]} 10. h3 {[%clk 0:02:47]}  Nbd7 {[%clk 0:02:41]} 11. Bh2 {[%clk 0:02:47]}  a6 {[%clk 0:02:31]} 12. a3 {[%clk 0:02:41]}  dxc4 {[%clk 0:02:19]} 13. Bxc4 {[%clk 0:02:42]}  b5 {[%clk 0:02:19]} 14. Bd3 {[%clk 0:02:41]}  Bb7 {[%clk 0:02:20]} 15. O-O {[%clk 0:02:39]}  c5 {[%clk 0:02:19]} 16. Qe2 {[%clk 0:02:31]}  Qb6 {[%clk 0:02:14]} 17. Rfd1 {[%clk 0:02:26]}  c4 {[%clk 0:02:07]} 18. Bb1 {[%clk 0:02:26]}  Rac8 {[%clk 0:02:03]} 19. e4 {[%clk 0:02:25]}  Rfe8 {[%clk 0:02:00]} 20. Qc2 {[%clk 0:02:06]}  Nf8 {[%clk 0:01:56]} 21. Ne5 {[%clk 0:01:50]}  a5 {[%clk 0:01:51]} 22. Qe2 {[%clk 0:01:46]}  Ba6 {[%clk 0:01:47]} 23. a4 {[%clk 0:01:40]}  b4 {[%clk 0:01:41]} 24. Nb5 {[%clk 0:01:40]}  c3 {[%clk 0:01:31]} 25. bxc3 {[%clk 0:01:35]}  bxc3 {[%clk 0:01:30]} 26. Bd3 {[%clk 0:01:23]}  Bxb5 {[%clk 0:01:05]} 27. axb5 {[%clk 0:01:21]}  Bb4 {[%clk 0:00:57]} 28. Nc6 {[%clk 0:01:15]}  Ng6 {[%clk 0:00:29]} 29. Rc2 {[%clk 0:01:03]}  Red8 {[%clk 0:00:19]} 30. Rb1 {[%clk 0:01:02]}  Rxc6 {[%clk 0:00:19]} 31. bxc6 {[%clk 0:01:01]}  Qxc6 {[%clk 0:00:19]} 32. Qe3 {[%clk 0:00:47]}  Qd7 {[%clk 0:00:16]} 33. e5 {[%clk 0:00:33]}  Nd5 {[%clk 0:00:16]} 34. Qe4 {[%clk 0:00:33]}  Nde7 {[%clk 0:00:14]} 35. Bf1 {[%clk 0:00:17]}  Qxd4 {[%clk 0:00:14]} 36. Qe1 {[%clk 0:00:17]}  Nd5 {[%clk 0:00:13]} 37. Rd1 {[%clk 0:00:17]}  Qc5 {[%clk 0:00:12]} 38. Qe4 {[%clk 0:00:17]}  Qd4 {[%clk 0:00:13]} 39. Qxd4 {[%clk 0:00:17]}  Rc8 {[%clk 0:00:12]} 40. Bd3 {[%clk 0:00:17]}  Bc5 {[%clk 0:00:12]} 41. Qa4 {[%clk 0:00:17]}  Bb4 {[%clk 0:00:11]} 42. Qd7 {[%clk 0:00:16]}  Nge7 {[%clk 0:00:10]} 43. Ra1 {[%clk 0:00:15]}  g6 {[%clk 0:00:07]} 44. h4 {[%clk 0:00:15]}  Kg7 {[%clk 0:00:06]} 45. h5 {[%clk 0:00:16]}  Rc7 {[%clk 0:00:04]} 46. Qb5 {[%clk 0:00:14]}  Rc8 {[%clk 0:00:04]} 47. hxg6 {[%clk 0:00:14]}  fxg6 {[%clk 0:00:04]} 48. Rxa5 {[%clk 0:00:14]}  Kf7 {[%clk 0:00:05]} 49. Ra7 {[%clk 0:00:14]}  Rc5 {[%clk 0:00:05]} 50. Qb7 {[%clk 0:00:13]}  Rc7 {[%clk 0:00:05]} 51. Qxc7 {[%clk 0:00:13]}  Nxc7 {[%clk 0:00:06]} 52. Rxc7 {[%clk 0:00:14]}  Ke8 {[%clk 0:00:05]} 53. R7xc3 {[%clk 0:00:14]}  Bxc3 {[%clk 0:00:05]} 54. Rxc3 {[%clk 0:00:15]}  Nd5 {[%clk 0:00:06]} 55. Rc4 {[%clk 0:00:16]}  Nb6 {[%clk 0:00:06]} 56. Rc6 {[%clk 0:00:16]}  Nd5 {[%clk 0:00:06]} 57. Rxe6+ {[%clk 0:00:16]}  Kd7 {[%clk 0:00:07]} 58. Rd6+ {[%clk 0:00:17]}  Ke7 {[%clk 0:00:08]} 59. Rxd5 {[%clk 0:00:18]} 1-0


[Site "https://www.chess.com"]

[Event "Titled Tuesday Blitz December 06 Early 2022"]
[White "Barria Zuniga, Daniel"]
[Black "Meduri, Aakaash"]
[WhiteFideId "3400816"]
[BlackFideId "2032252"]
[WhiteElo "2414"]
[BlackElo "2113"]
[Result "1-0"]
[Round "04"]
[TimeControl "180+1"]
[Date "2022.12.07"]
[WhiteClock "0:01:10"]
[BlackClock "0:00:09"]

1. d4 {[%clk 0:02:52]}  d5 {[%clk 0:02:58]} 2. c4 {[%clk 0:02:52]}  c6 {[%clk 0:02:59]} 3. Nf3 {[%clk 0:02:52]}  Nf6 {[%clk 0:02:59]} 4. Nc3 {[%clk 0:02:52]}  e6 {[%clk 0:02:59]} 5. Bg5 {[%clk 0:02:49]}  dxc4 {[%clk 0:02:59]} 6. e4 {[%clk 0:02:45]}  b5 {[%clk 0:02:58]} 7. a4 {[%clk 0:02:44]}  Bb4 {[%clk 0:02:35]} 8. e5 {[%clk 0:02:44]}  h6 {[%clk 0:02:35]} 9. exf6 {[%clk 0:02:43]}  hxg5 {[%clk 0:02:32]} 10. fxg7 {[%clk 0:02:43]}  Rg8 {[%clk 0:02:31]} 11. g3 {[%clk 0:02:43]}  Bb7 {[%clk 0:02:19]} 12. Bg2 {[%clk 0:02:40]}  Nd7 {[%clk 0:02:17]} 13. O-O {[%clk 0:02:39]}  Qb6 {[%clk 0:02:06]} 14. Ne5 {[%clk 0:02:38]}  Nxe5 {[%clk 0:01:20]} 15. dxe5 {[%clk 0:02:38]}  Rxg7 {[%clk 0:01:07]} 16. Ne4 {[%clk 0:02:37]}  Rd8 {[%clk 0:00:57]} 17. Qh5 {[%clk 0:02:20]}  Ke7 {[%clk 0:00:56]} 18. Nxg5 {[%clk 0:02:09]}  Qd4 {[%clk 0:00:50]} 19. Ne4 {[%clk 0:01:53]}  a6 {[%clk 0:00:24]} 20. Rad1 {[%clk 0:01:44]}  c5 {[%clk 0:00:19]} 21. Qh4+ {[%clk 0:01:34]}  Kd7 {[%clk 0:00:18]} 22. Rxd4+ {[%clk 0:01:33]}  cxd4 {[%clk 0:00:18]} 23. axb5 {[%clk 0:01:31]}  axb5 {[%clk 0:00:16]} 24. Qf6 {[%clk 0:01:29]}  Rdg8 {[%clk 0:00:10]} 25. Ra1 {[%clk 0:01:20]}  Be7 {[%clk 0:00:09]} 26. Qf4 {[%clk 0:01:14]}  Kc7 {[%clk 0:00:09]} 27. Ra7 {[%clk 0:01:10]}  Rb8 {[%clk 0:00:09]} 28. Nd6 {[%clk 0:01:09]}  Bxd6 {[%clk 0:00:08]} 29. exd6+ {[%clk 0:01:10]}  Kb6 {[%clk 0:00:09]} 30. Qxd4# {[%clk 0:01:10]} 1-0


[Site "https://www.chess.com"]

[Event "Titled Tuesday Blitz December 06 Early 2022"]
[White "Bernat, David"]
[Black "Tarnowska, Aleksandra"]
[WhiteFideId "2099225"]
[BlackFideId "1180967"]
[WhiteElo "2351"]
[BlackElo "1776"]
[Result "1-0"]
[Round "04"]
[TimeControl "180+1"]
[Date "2022.12.07"]
[WhiteClock "0:00:14"]
[BlackClock "0:00:02"]

1. c4 {[%clk 0:02:53]}  e5 {[%clk 0:02:59]} 2. Nc3 {[%clk 0:02:54]}  Nf6 {[%clk 0:02:59]} 3. g3 {[%clk 0:02:53]}  Bb4 {[%clk 0:03:00]} 4. Bg2 {[%clk 0:02:53]}  O-O {[%clk 0:03:00]} 5. Nd5 {[%clk 0:02:53]}  Bc5 {[%clk 0:02:59]} 6. e3 {[%clk 0:02:53]}  c6 {[%clk 0:02:58]} 7. Nxf6+ {[%clk 0:02:52]}  Qxf6 {[%clk 0:02:59]} 8. Ne2 {[%clk 0:02:49]}  d6 {[%clk 0:02:57]} 9. O-O {[%clk 0:02:50]}  Bf5 {[%clk 0:02:38]} 10. d4 {[%clk 0:02:49]}  exd4 {[%clk 0:02:38]} 11. exd4 {[%clk 0:02:50]}  Bb6 {[%clk 0:02:37]} 12. Be3 {[%clk 0:02:50]}  Nd7 {[%clk 0:02:34]} 13. a4 {[%clk 0:02:18]}  Bc7 {[%clk 0:02:19]} 14. b4 {[%clk 0:02:17]}  Nb6 {[%clk 0:02:16]} 15. Qb3 {[%clk 0:02:08]}  Qe6 {[%clk 0:01:35]} 16. Rfc1 {[%clk 0:01:22]}  Rac8 {[%clk 0:01:25]} 17. a5 {[%clk 0:01:19]}  Nd7 {[%clk 0:01:23]} 18. Nf4 {[%clk 0:01:18]}  Qe7 {[%clk 0:01:15]} 19. a6 {[%clk 0:01:18]}  bxa6 {[%clk 0:00:58]} 20. Rxa6 {[%clk 0:01:12]}  c5 {[%clk 0:00:38]} 21. Nd5 {[%clk 0:01:08]}  Qd8 {[%clk 0:00:34]} 22. dxc5 {[%clk 0:00:48]}  dxc5 {[%clk 0:00:35]} 23. bxc5 {[%clk 0:00:49]}  Rb8 {[%clk 0:00:34]} 24. Qa4 {[%clk 0:00:44]}  Be5 {[%clk 0:00:20]} 25. Rxa7 {[%clk 0:00:42]}  Bb2 {[%clk 0:00:21]} 26. Rd1 {[%clk 0:00:37]}  Re8 {[%clk 0:00:17]} 27. c6 {[%clk 0:00:36]}  Nb6 {[%clk 0:00:04]} 28. Bxb6 {[%clk 0:00:25]}  Qg5 {[%clk 0:00:03]} 29. Be3 {[%clk 0:00:17]}  Qg4 {[%clk 0:00:03]} 30. h3 {[%clk 0:00:14]}  Qg6 {[%clk 0:00:03]} 31. c7 {[%clk 0:00:13]}  Rbd8 {[%clk 0:00:02]} 32. cxd8=Q {[%clk 0:00:13]}  Rxd8 {[%clk 0:00:02]} 33. Ne7+ {[%clk 0:00:14]}  Kf8 {[%clk 0:00:02]} 34. Rxd8# {[%clk 0:00:14]} 1-0


[Site "https://www.chess.com"]

[Event "Titled Tuesday Blitz December 06 Early 2022"]
[White "Bok, Benjamin"]
[Black "Samaganova, Aleksandra"]
[WhiteFideId "1017063"]
[BlackFideId "13800221"]
[WhiteElo "2658"]
[BlackElo "1864"]
[Result "1-0"]
[Round "04"]
[TimeControl "180+1"]
[Date "2022.12.07"]
[WhiteClock "0:01:54"]
[BlackClock "0:00:20"]

1. d4 {[%clk 0:03:00]}  Nf6 {[%clk 0:02:59]} 2. c4 {[%clk 0:03:00]}  e6 {[%clk 0:03:00]} 3. Nc3 {[%clk 0:03:00]}  Bb4 {[%clk 0:02:56]} 4. Qc2 {[%clk 0:03:01]}  b6 {[%clk 0:02:55]} 5. e4 {[%clk 0:03:00]}  Bxc3+ {[%clk 0:02:49]} 6. bxc3 {[%clk 0:03:00]}  d5 {[%clk 0:02:49]} 7. cxd5 {[%clk 0:02:56]}  exd5 {[%clk 0:02:48]} 8. e5 {[%clk 0:02:57]}  Nfd7 {[%clk 0:02:44]} 9. Bd3 {[%clk 0:02:50]}  h6 {[%clk 0:02:42]} 10. f4 {[%clk 0:02:27]}  O-O {[%clk 0:02:38]} 11. Ne2 {[%clk 0:02:20]}  c5 {[%clk 0:02:37]} 12. O-O {[%clk 0:02:19]}  Ba6 {[%clk 0:02:28]} 13. f5 {[%clk 0:02:17]}  c4 {[%clk 0:02:18]} 14. Be4 {[%clk 0:02:16]}  dxe4 {[%clk 0:02:03]} 15. Qxe4 {[%clk 0:02:17]}  Nc6 {[%clk 0:02:03]} 16. Qxc6 {[%clk 0:02:15]}  Rc8 {[%clk 0:02:01]} 17. Qe4 {[%clk 0:02:14]}  Re8 {[%clk 0:01:58]} 18. Qg4 {[%clk 0:02:12]}  Nxe5 {[%clk 0:00:47]} 19. dxe5 {[%clk 0:02:10]}  Rxe5 {[%clk 0:00:47]} 20. Bxh6 {[%clk 0:01:56]}  Qf6 {[%clk 0:00:31]} 21. Bg5 {[%clk 0:01:56]}  Qc6 {[%clk 0:00:27]} 22. Nd4 {[%clk 0:01:56]}  Qc5 {[%clk 0:00:20]} 23. Bf6 {[%clk 0:01:54]} 1-0


[Site "https://www.chess.com"]

[Event "Titled Tuesday Blitz December 06 Early 2022"]
[White "Chigaev, Maksim"]
[Black "Putnam, Liam"]
[WhiteFideId "4108116"]
[BlackFideId "30938279"]
[WhiteElo "2542"]
[BlackElo "2082"]
[Result "1-0"]
[Round "04"]
[TimeControl "180+1"]
[Date "2022.12.06"]
[WhiteClock "0:00:08"]
[BlackClock "0:00:03"]

1. e4 {[%clk 0:02:52]}  c5 {[%clk 0:02:55]} 2. Nf3 {[%clk 0:02:52]}  d6 {[%clk 0:02:51]} 3. d4 {[%clk 0:02:52]}  cxd4 {[%clk 0:02:52]} 4. Nxd4 {[%clk 0:02:53]}  Nf6 {[%clk 0:02:53]} 5. Nc3 {[%clk 0:02:53]}  Nc6 {[%clk 0:02:53]} 6. Bg5 {[%clk 0:02:52]}  e6 {[%clk 0:02:53]} 7. Bb5 {[%clk 0:02:52]}  Bd7 {[%clk 0:02:52]} 8. Qd3 {[%clk 0:02:52]}  Be7 {[%clk 0:02:47]} 9. O-O-O {[%clk 0:02:50]}  O-O {[%clk 0:02:42]} 10. Bxc6 {[%clk 0:02:42]}  bxc6 {[%clk 0:02:42]} 11. Nb3 {[%clk 0:02:21]}  d5 {[%clk 0:02:36]} 12. e5 {[%clk 0:02:18]}  Ne8 {[%clk 0:02:24]} 13. Bxe7 {[%clk 0:02:18]}  Qxe7 {[%clk 0:02:25]} 14. Qe3 {[%clk 0:02:18]}  Nc7 {[%clk 0:02:12]} 15. Nc5 {[%clk 0:02:13]}  Rfb8 {[%clk 0:02:09]} 16. N3e4 {[%clk 0:01:52]}  Rb4 {[%clk 0:01:30]} 17. a3 {[%clk 0:01:31]}  Rxe4 {[%clk 0:01:15]} 18. Nxe4 {[%clk 0:01:28]}  dxe4 {[%clk 0:01:16]} 19. Qxe4 {[%clk 0:01:26]}  Nd5 {[%clk 0:00:55]} 20. c4 {[%clk 0:01:23]}  Nb6 {[%clk 0:00:35]} 21. Rd6 {[%clk 0:01:20]}  Nc8 {[%clk 0:00:34]} 22. Rd2 {[%clk 0:01:19]}  Rb8 {[%clk 0:00:29]} 23. Rhd1 {[%clk 0:01:18]}  Nb6 {[%clk 0:00:29]} 24. f4 {[%clk 0:01:00]}  h6 {[%clk 0:00:26]} 25. g3 {[%clk 0:00:59]}  Be8 {[%clk 0:00:25]} 26. h4 {[%clk 0:00:43]}  Na4 {[%clk 0:00:22]} 27. Qe3 {[%clk 0:00:32]}  Nc5 {[%clk 0:00:20]} 28. Rd6 {[%clk 0:00:16]}  Nb3+ {[%clk 0:00:20]} 29. Kb1 {[%clk 0:00:15]}  Na5 {[%clk 0:00:21]} 30. Qc3 {[%clk 0:00:12]}  Nb7 {[%clk 0:00:20]} 31. R6d4 {[%clk 0:00:07]}  Nc5 {[%clk 0:00:18]} 32. Qc2 {[%clk 0:00:07]}  g6 {[%clk 0:00:17]} 33. h5 {[%clk 0:00:06]}  Kg7 {[%clk 0:00:12]} 34. Rd6 {[%clk 0:00:07]}  Qb7 {[%clk 0:00:10]} 35. g4 {[%clk 0:00:06]}  Na4 {[%clk 0:00:10]} 36. R1d2 {[%clk 0:00:07]}  Qb3 {[%clk 0:00:08]} 37. Qxb3 {[%clk 0:00:07]}  Rxb3 {[%clk 0:00:09]} 38. hxg6 {[%clk 0:00:07]}  fxg6 {[%clk 0:00:07]} 39. Rxe6 {[%clk 0:00:07]}  Bf7 {[%clk 0:00:07]} 40. Rd7 {[%clk 0:00:08]}  Rxb2+ {[%clk 0:00:06]} 41. Kc1 {[%clk 0:00:07]}  Rb8 {[%clk 0:00:02]} 42. Ree7 {[%clk 0:00:06]}  Rf8 {[%clk 0:00:03]} 43. e6 {[%clk 0:00:07]}  Kf6 {[%clk 0:00:03]} 44. Rxf7+ {[%clk 0:00:07]}  Rxf7 {[%clk 0:00:04]} 45. exf7 {[%clk 0:00:08]}  Kg7 {[%clk 0:00:04]} 46. Kc2 {[%clk 0:00:07]}  Nc5 {[%clk 0:00:05]} 47. Rxa7 {[%clk 0:00:07]}  h5 {[%clk 0:00:04]} 48. gxh5 {[%clk 0:00:06]}  gxh5 {[%clk 0:00:05]} 49. Ra5 {[%clk 0:00:06]}  Ne6 {[%clk 0:00:03]} 50. Rxh5 {[%clk 0:00:06]}  Kxf7 {[%clk 0:00:03]} 51. f5 {[%clk 0:00:06]}  Ng7 {[%clk 0:00:03]} 52. Rh7 {[%clk 0:00:06]}  Kg8 {[%clk 0:00:02]} 53. Rxg7+ {[%clk 0:00:07]}  Kxg7 {[%clk 0:00:03]} 54. a4 {[%clk 0:00:08]} 1-0


[Site "https://www.chess.com"]

[Event "Titled Tuesday Blitz December 06 Early 2022"]
[White "Cramling Bellon, Anna"]
[Black "Rose, Felix"]
[WhiteFideId "32009232"]
[BlackFideId "5105722"]
[WhiteElo "1972"]
[BlackElo "2039"]
[Result "1-0"]
[Round "04"]
[TimeControl "180+1"]
[Date "2022.12.07"]
[WhiteClock "0:00:36"]
[BlackClock "0:01:01"]

1. d4 {[%clk 0:03:00]}  d5 {[%clk 0:02:59]} 2. c4 {[%clk 0:03:01]}  e6 {[%clk 0:02:59]} 3. Nc3 {[%clk 0:03:01]}  Nf6 {[%clk 0:02:59]} 4. cxd5 {[%clk 0:03:02]}  exd5 {[%clk 0:03:00]} 5. Bg5 {[%clk 0:03:02]}  c6 {[%clk 0:03:01]} 6. e3 {[%clk 0:03:02]}  Be7 {[%clk 0:03:01]} 7. Bd3 {[%clk 0:03:02]}  Nbd7 {[%clk 0:03:02]} 8. Qc2 {[%clk 0:03:01]}  h6 {[%clk 0:03:02]} 9. Bh4 {[%clk 0:02:58]}  Nh5 {[%clk 0:03:03]} 10. Bxe7 {[%clk 0:02:58]}  Qxe7 {[%clk 0:03:04]} 11. Nf3 {[%clk 0:02:50]}  Nf4 {[%clk 0:03:03]} 12. O-O-O {[%clk 0:02:50]}  Nxd3+ {[%clk 0:03:03]} 13. Qxd3 {[%clk 0:02:50]}  Nf6 {[%clk 0:03:02]} 14. Ne5 {[%clk 0:02:50]}  g6 {[%clk 0:02:54]} 15. f3 {[%clk 0:02:47]}  Be6 {[%clk 0:02:26]} 16. e4 {[%clk 0:02:42]}  O-O-O {[%clk 0:02:24]} 17. exd5 {[%clk 0:02:28]}  Nxd5 {[%clk 0:02:18]} 18. Rhe1 {[%clk 0:02:21]}  Qg5+ {[%clk 0:02:03]} 19. Kb1 {[%clk 0:02:16]}  Qxg2 {[%clk 0:01:53]} 20. Nxd5 {[%clk 0:00:59]}  Rxd5 {[%clk 0:01:20]} 21. Nxg6 {[%clk 0:00:54]}  Bf5 {[%clk 0:01:11]} 22. Ne7+ {[%clk 0:00:53]}  Kd7 {[%clk 0:01:05]} 23. Nxf5 {[%clk 0:00:50]}  Qg6 {[%clk 0:01:01]} 24. Ne3 {[%clk 0:00:36]} 1-0


[Site "https://www.chess.com"]